bitfinex/quotes_BTCUSD_20220211
["timestamp","ask_amount","ask_price","bid_price","bid_amount"]
[1644570325085,0.64532272,43138.0,43137.0,0.0022]
[1644570325282,0.42223572,43138.0,43137.0,0.0022]
[1644570326183,0.70240484,43138.0,43137.0,0.0022]
[1644570326382,0.42223572,43138.0,43137.0,0.0022]
[1644570326783,0.74532272,43138.0,43137.0,0.0022]
[1644570326988,0.4,43138.0,43137.0,0.0022]
[1644570327185,0.423087,43138.0,43137.0,0.0022]
[1644570327383,0.1,43138.0,43137.0,0.0022]
[1644570327784,1.9990955,43139.0,43137.0,0.0022]
[1644570328232,1.8490955,43139.0,43137.0,0.0022]
[1644570328436,0.323087,43138.0,43137.0,0.0022]
[1644570328636,1.46737848,43139.0,43137.0,0.0022]
[1644570329036,0.11599228,43141.0,43137.0,0.0022]
[1644570329037,0.05799628,43141.0,43137.0,0.0022]
[1644570329240,0.115972,43145.0,43137.0,0.0022]
[1644570329241,0.323087,43139.0,43137.0,0.0022]
[1644570329435,0.323087,43143.0,43137.0,0.0022]
[1644570329636,0.1,43153.0,43137.0,0.0022]
[1644570329637,0.623087,43150.0,43137.0,0.00280013]
[1644570329836,0.1,43153.0,43137.0,0.00280013]
[1644570329837,0.1,43153.0,43138.0,0.0463]
[1644570330035,0.34338412,43154.0,43153.0,0.07755529]
[1644570330239,0.34338412,43154.0,43152.0,0.0463]
[1644570330435,0.34338412,43154.0,43148.0,0.0463]
[1644570330637,0.19036213,43161.0,43149.0,0.0463]
[1644570330833,0.1169,43165.0,43150.0,0.0463]
[1644570331036,0.00069512,43156.0,43150.0,0.0463]
[1644570331647,0.00069512,43156.0,43154.0,0.08851262]
[1644570331885,0.3838,43170.0,43154.0,0.08851262]
[1644570331886,0.323087,43171.0,43155.0,0.0463]
[1644570332087,0.00069512,43156.0,43155.0,0.0463]
[1644570332585,0.00069512,43156.0,43155.0,0.0963]
[1644570332986,0.2946401,43165.0,43155.0,0.0963]
[1644570332987,0.31085829,43161.0,43155.0,0.0963]
[1644570333385,0.00069512,43158.0,43155.0,0.0963]
[1644570334187,0.00278008,43164.0,43155.0,0.0963]
[1644570334389,0.2946401,43165.0,43155.0,0.0963]
[1644570334588,0.00069512,43159.0,43155.0,0.0963]
[1644570335291,0.00133539,43156.0,43155.0,0.212192]
[1644570335640,0.2946401,43165.0,43155.0,0.0963]
[1644570335836,0.00069512,43159.0,43156.0,0.9]
[1644570336035,0.00069512,43159.0,43157.0,0.0963]
[1644570336237,0.00069512,43159.0,43158.0,0.4374635]
[1644570336435,0.00069512,43159.0,43158.0,0.4837635]
[1644570336638,0.07992001,43172.0,43158.0,1.183343]
[1644570336838,0.07992001,43172.0,43169.0,0.35808294]
[1644570337038,0.07992001,43172.0,43170.0,0.0463]
[1644570337940,0.07992001,43172.0,43171.0,0.06371704]
[1644570338138,0.07992001,43172.0,43171.0,0.11001704]
[1644570338540,0.07992001,43172.0,43171.0,0.21793504]
[1644570338838,0.07992001,43172.0,43171.0,0.16001704]
[1644570339036,0.07992001,43172.0,43171.0,0.0963]
[1644570341897,0.07992001,43172.0,43171.0,0.05439886]
[1644570342093,0.07992001,43172.0,43171.0,0.0463]
[1644570342295,0.07064701,43172.0,43171.0,0.0463]
[1644570343337,0.00051496,43174.0,43172.0,0.95]
[1644570343538,0.00051496,43174.0,43173.0,0.0463]
[1644570343739,0.00051496,43174.0,43173.0,0.73835239]
[1644570343938,0.00023474,43186.0,43173.0,0.73835239]
[1644570344136,0.01,43189.0,43181.0,0.22678446]
[1644570344137,0.00023474,43188.0,43181.0,0.22678446]
[1644570344445,0.01,43189.0,43181.0,0.33468446]
[1644570344446,0.002781,43182.0,43181.0,0.33468446]
[1644570344642,0.00023474,43187.0,43182.0,0.95]
[1644570344838,0.01,43189.0,43182.0,1.55728432]
[1644570344839,0.00023474,43188.0,43182.0,1.55728432]
[1644570345037,0.00023474,43186.0,43182.0,1.27807175]
[1644570345239,0.00023474,43187.0,43182.0,1.27807175]
[1644570345438,0.00023474,43186.0,43182.0,1.27807175]
[1644570345641,0.00023474,43188.0,43182.0,1.32807175]
[1644570345838,0.00023474,43186.0,43182.0,1.32807175]
[1644570346038,0.00023474,43187.0,43182.0,1.32807175]
[1644570346240,0.00023474,43186.0,43182.0,1.32807175]
[1644570346439,0.00023474,43188.0,43182.0,1.32807175]
[1644570346640,0.00023474,43186.0,43182.0,1.32807175]
[1644570346885,0.00023474,43187.0,43182.0,1.32807175]
[1644570347185,0.00023474,43188.0,43182.0,1.32807175]
[1644570347384,0.00023474,43186.0,43182.0,1.32807175]
[1644570347585,0.00023474,43188.0,43182.0,1.32807175]
[1644570347786,0.00023474,43188.0,43182.0,1.33733575]
[1644570347787,0.00051465,43185.0,43182.0,1.33733575]
[1644570347985,0.00051465,43185.0,43182.0,1.28733575]
[1644570348187,0.00051465,43185.0,43182.0,1.32807175]
[1644570348585,0.02606626,43183.0,43182.0,1.32807175]
[1644570348786,0.00023474,43188.0,43183.0,1.065787]
[1644570348990,0.171795,43214.0,43188.0,0.95]
[1644570348991,0.00205047,43195.0,43188.0,0.95]
[1644570349187,0.00205047,43195.0,43190.0,0.05]
[1644570349387,0.00205047,43195.0,43192.0,0.30634538]
[1644570349388,0.00228574,43195.0,43192.0,0.30634538]
[1644570349585,0.00205047,43195.0,43193.0,0.0880227]
[1644570350087,0.01023527,43196.0,43193.0,0.2037867]
[1644570350288,0.01051274,43196.0,43193.0,0.162064]
[1644570350488,0.01051274,43196.0,43193.0,0.104182]
[1644570350952,0.01051274,43196.0,43193.0,0.0463]
[1644570351150,0.01,43196.0,43193.0,0.0463]
[1644570351348,0.26895296,43194.0,43193.0,0.0463]
[1644570352349,0.26895296,43194.0,43192.0,0.059264]
[1644570352753,0.26895296,43194.0,43192.0,0.009264]
[1644570353653,0.323087,43193.0,43192.0,0.00251662]
[1644570353853,0.423087,43193.0,43192.0,0.00251662]
[1644570355483,0.34315239,43193.0,43192.0,0.00251662]
[1644570356685,0.67788335,43193.0,43192.0,0.00251662]
[1644570357085,0.34315239,43193.0,43192.0,0.00251662]
[1644570357284,0.25263576,43187.0,43173.0,0.115842]
[1644570357485,0.06973383,43181.0,43180.0,0.000495]
[1644570357686,0.39279583,43181.0,43180.0,0.000495]
[1644570357887,0.06973383,43181.0,43180.0,0.000495]
[1644570358159,0.39279583,43181.0,43180.0,0.000495]
[1644570358340,0.39279583,43181.0,43173.0,0.115842]
[1644570358544,0.33744003,43181.0,43178.0,0.00051182]
[1644570359144,0.58059687,43180.0,43178.0,0.00051182]
[1644570359442,0.25279127,43180.0,43178.0,0.00051182]
[1644570359642,0.25662913,43180.0,43176.0,0.057925]
[1644570359842,0.33744003,43181.0,43177.0,0.08032284]
[1644570360042,0.33744003,43181.0,43177.0,0.00051184]
[1644570360242,0.59307416,43180.0,43177.0,0.00051184]
[1644570360745,0.59307416,43180.0,43169.0,0.115856]
[1644570360746,0.69307416,43180.0,43169.0,0.115856]
[1644570360942,0.37001216,43180.0,43176.0,0.00051184]
[1644570361145,0.323062,43179.0,43176.0,0.00051184]
[1644570361342,0.323062,43177.0,43176.0,0.00051184]
[1644570361541,0.59408849,43177.0,43176.0,0.00051184]
[1644570361986,0.59408849,43177.0,43165.0,0.115867]
[1644570361987,0.59220749,43177.0,43165.0,0.115867]
[1644570362187,0.323067,43176.0,43174.0,0.00050941]
[1644570362387,0.58299142,43175.0,43174.0,0.00050941]
[1644570362787,0.65767711,43175.0,43174.0,0.00050941]
[1644570363190,0.39775269,43175.0,43164.0,0.115868]
[1644570363388,0.07468569,43175.0,43164.0,0.115868]
[1644570363589,0.32695026,43173.0,43164.0,0.215868]
[1644570363794,0.32695026,43173.0,43168.0,0.009269]
[1644570363989,0.32401878,43173.0,43167.0,0.05]
[1644570364190,0.32401878,43173.0,43164.0,0.1]
[1644570364390,0.07468569,43175.0,43166.0,0.081724]
[1644570364589,0.07468569,43175.0,43167.0,0.05]
[1644570364792,0.07468569,43175.0,43164.0,0.05]
[1644570364988,0.07468569,43175.0,43162.0,0.45466037]
[1644570364989,0.07468569,43175.0,43165.0,0.081728]
[1644570365189,0.28395756,43177.0,43165.0,0.131728]
[1644570365390,0.28395756,43177.0,43167.0,0.081721]
[1644570365644,0.26518354,43176.0,43169.0,0.057931]
[1644570365836,0.26518354,43176.0,43170.0,0.081712]
[1644570366034,0.285,43181.0,43170.0,0.081712]
[1644570366235,0.285,43181.0,43172.0,0.36999886]
[1644570366438,0.285,43181.0,43172.0,0.41956747]
[1644570366636,0.323067,43180.0,43172.0,0.41956747]
[1644570367036,0.67713682,43179.0,43174.0,0.00060949]
[1644570367637,0.323067,43179.0,43174.0,0.00060949]
[1644570367837,0.00069544,43183.0,43175.0,0.081698]
[1644570368041,0.38533212,43193.0,43176.0,0.139617]
[1644570368042,0.42401583,43192.0,43176.0,0.139617]
[1644570368243,0.00069544,43183.0,43177.0,0.0427]
[1644570368538,0.00069544,43183.0,43178.0,0.139599]
[1644570368736,0.00069544,43183.0,43178.0,0.239599]
[1644570369136,0.27720275,43188.0,43179.0,0.081685]
[1644570369381,0.22343671,43189.0,43179.0,0.081685]
[1644570369582,0.22343671,43189.0,43180.0,0.057913]
[1644570369882,0.00023527,43192.0,43183.0,0.057913]
[1644570370089,0.00278131,43193.0,43183.0,0.100613]
[1644570370282,0.00023527,43192.0,43183.0,0.100613]
[1644570370484,0.00023527,43194.0,43187.0,0.32645429]
[1644570370683,0.01,43196.0,43189.0,0.0579]
[1644570370684,0.00023527,43192.0,43189.0,0.0579]
[1644570370882,0.00023527,43194.0,43189.0,0.0579]
[1644570371087,0.00023527,43195.0,43189.0,0.0579]
[1644570371284,0.01,43196.0,43190.0,0.0427]
[1644570371285,0.01023527,43196.0,43190.0,0.0427]
[1644570371487,0.00023527,43195.0,43190.0,0.0427]
[1644570371684,0.01,43196.0,43191.0,0.057893]
[1644570371685,0.01023527,43196.0,43191.0,0.057893]
[1644570371883,0.00131008,43197.0,43194.0,0.05]
[1644570372085,0.00023567,43196.0,43195.0,0.33426848]
[1644570372289,0.00041008,43197.0,43196.0,0.2]
[1644570372483,0.01,43199.0,43196.0,0.2427]
[1644570372684,0.01,43199.0,43196.0,0.3427]
[1644570372883,0.01,43199.0,43196.0,0.73437617]
[1644570373146,0.02,43204.0,43197.0,1.007878]
[1644570373339,0.02,43204.0,43199.0,0.11575163]
[1644570373539,0.02,43204.0,43200.0,0.0427]
[1644570373740,0.02,43204.0,43200.0,0.1427]
[1644570374042,0.02,43204.0,43203.0,0.06627176]
[1644570374238,0.02,43204.0,43203.0,0.48349921]
[1644570374239,0.02069609,43204.0,43203.0,0.48349921]
[1644570374738,0.02069609,43204.0,43203.0,0.64137421]
[1644570375143,0.00608677,43204.0,43203.0,0.64137421]
[1644570375339,0.00122972,43210.0,43204.0,0.95]
[1644570375539,0.00122972,43210.0,43205.0,0.0427]
[1644570375741,0.00122972,43210.0,43206.0,0.057866]
[1644570375940,0.00122972,43210.0,43206.0,0.100566]
[1644570376142,0.00278392,43212.0,43208.0,0.18881659]
[1644570376340,0.03,43213.0,43208.0,0.23881659]
[1644570376545,0.03,43213.0,43209.0,0.0427]
[1644570376743,0.03,43213.0,43211.0,0.30136079]
[1644570376990,0.03,43213.0,43212.0,0.0427]
[1644570377591,0.03,43213.0,43212.0,0.08968742]
[1644570377891,0.03,43213.0,43212.0,0.13968742]
[1644570378093,0.0008518,43216.0,43214.0,0.057855]
[1644570378294,0.162617,43218.0,43215.0,0.9927]
[1644570378495,0.0006688,43225.0,43216.0,1.239214]
[1644570378694,0.0006688,43225.0,43224.0,0.30151358]
[1644570378893,0.0006688,43225.0,43224.0,0.06019383]
[1644570379097,0.0034525,43225.0,43224.0,0.06019383]
[1644570379495,0.0013376,43226.0,43225.0,0.95]
[1644570379698,0.19469405,43236.0,43225.0,0.9927]
[1644570379895,0.19469405,43238.0,43225.0,1.2927]
[1644570380096,0.20592889,43239.0,43231.0,0.2]
[1644570380297,0.01123484,43239.0,43237.0,0.37764665]
[1644570380498,0.01123484,43239.0,43238.0,0.0427]
[1644570380738,0.00623484,43239.0,43238.0,0.0427]
[1644570381738,0.00623484,43239.0,43238.0,0.100527]
[1644570381940,0.00623484,43239.0,43237.0,0.1582793]
[1644570382138,0.00623484,43239.0,43238.0,0.0427]
[1644570382741,0.0229642,43245.0,43241.0,0.06627176]
[1644570382938,0.0079642,43245.0,43242.0,0.0427]
[1644570384040,0.0079642,43245.0,43242.0,0.216139]
[1644570384241,0.0079642,43245.0,43242.0,0.27396]
[1644570385285,0.0079642,43245.0,43243.0,0.28449894]
[1644570385487,0.0079642,43245.0,43244.0,0.56982765]
[1644570385686,0.0079642,43245.0,43244.0,0.61982765]
[1644570385887,0.00087064,43246.0,43245.0,0.05781249]
[1644570386087,0.00017318,43246.0,43245.0,0.44046762]
[1644570386287,0.00017318,43246.0,43245.0,0.54046762]
[1644570386487,0.00017318,43246.0,43245.0,0.20051249]
[1644570386690,0.00017318,43246.0,43245.0,0.52762605]
[1644570386891,0.00017318,43246.0,43245.0,0.20051249]
[1644570387087,0.0013628,43258.0,43246.0,0.95]
[1644570387291,0.0013628,43258.0,43248.0,0.057809]
[1644570387491,0.0013628,43258.0,43252.0,0.057804]
[1644570387690,0.0013628,43258.0,43253.0,0.0427]
[1644570387888,0.00159919,43258.0,43253.0,0.0427]
[1644570388152,0.00159919,43258.0,43254.0,0.02776532]
[1644570388345,0.00159919,43258.0,43255.0,0.0427]
[1644570388544,0.00206075,43258.0,43256.0,0.057797]
[1644570388745,0.04110033,43264.0,43262.0,0.0662521]
[1644570388950,0.04110033,43264.0,43252.0,0.115607]
[1644570388951,0.29890258,43261.0,43252.0,0.115607]
[1644570389147,0.29890258,43261.0,43253.0,0.0427]
[1644570389347,0.29890258,43261.0,43254.0,0.0427]
[1644570389549,0.03830893,43264.0,43255.0,0.0427]
[1644570389747,0.38561866,43262.0,43256.0,0.0427]
[1644570389946,0.23850458,43258.0,43257.0,0.0427]
[1644570390147,0.03830893,43264.0,43257.0,0.0427]
[1644570390546,0.29477462,43259.0,43257.0,0.0427]
[1644570390750,0.29477462,43259.0,43238.0,0.1]
[1644570390751,2.31438875,43258.0,43237.0,0.115649]
[1644570390950,2.31438875,43258.0,43239.0,0.00018845]
[1644570390951,0.05,43242.0,43239.0,0.00018845]
[1644570391150,0.15,43237.0,43214.0,0.5]
[1644570391351,0.37306,43234.0,43212.0,0.03]
[1644570391548,0.05,43229.0,43212.0,0.03]
[1644570391747,0.55512857,43228.0,43212.0,0.03]
[1644570391989,0.21574167,43234.0,43212.0,0.03]
[1644570391990,0.3427,43227.0,43212.0,0.03]
[1644570392193,0.07767854,43224.0,43213.0,0.06750024]
[1644570392795,0.07767854,43224.0,43212.0,0.03]
[1644570392994,0.0002365,43225.0,43212.0,0.03]
[1644570393191,0.4427,43226.0,43212.0,0.03]
[1644570393192,0.0427,43226.0,43212.0,0.03]
[1644570393398,0.1,43236.0,43212.0,0.03]
[1644570393399,0.0002365,43225.0,43215.0,0.20651531]
[1644570393593,0.0002365,43226.0,43215.0,0.20651531]
[1644570393990,0.0002365,43229.0,43216.0,0.1157]
[1644570394192,0.3002365,43230.0,43226.0,0.08542953]
[1644570394393,0.0002365,43229.0,43226.0,0.08542953]
[1644570394591,0.3427,43236.0,43226.0,0.13542953]
[1644570394592,0.0002365,43230.0,43226.0,0.13542953]
[1644570394796,0.3002365,43233.0,43226.0,0.13542953]
[1644570394991,0.45816645,43237.0,43226.0,0.13542953]
[1644570395193,0.3,43237.0,43226.0,0.13542953]
[1644570395391,0.21958928,43234.0,43226.0,0.13542953]
[1644570395660,0.51879012,43233.0,43226.0,0.13542953]
[1644570395850,0.50379012,43233.0,43229.0,0.00062841]
[1644570396652,0.24852409,43233.0,43229.0,0.00062841]
[1644570396850,0.50749385,43233.0,43226.0,0.13542953]
[1644570397050,0.24852409,43233.0,43229.0,0.00062841]
[1644570397250,0.24852409,43233.0,43226.0,0.13305794]
[1644570397650,0.24852409,43233.0,43217.0,0.057862]
[1644570397850,0.27483249,43232.0,43218.0,0.05786]
[1644570398852,0.27483249,43232.0,43226.0,0.08026979]
[1644570399051,0.31610895,43231.0,43218.0,0.11572]
[1644570399254,0.41610895,43231.0,43215.0,0.223554]
[1644570399488,0.41610895,43231.0,43213.0,0.3209128]
[1644570399688,0.41610895,43231.0,43211.0,0.473959]
[1644570399889,0.41610895,43231.0,43211.0,0.06787]
[1644570400089,0.56128892,43222.0,43213.0,0.08734906]
[1644570400287,0.66128892,43222.0,43211.0,0.01]
[1644570400492,0.32306,43221.0,43211.0,0.01]
[1644570400688,0.37306,43221.0,43219.0,0.00062698]
[1644570400888,0.28570507,43220.0,43219.0,0.00062698]
[1644570401088,0.60876507,43220.0,43219.0,0.00062698]
[1644570401289,0.70876507,43220.0,43219.0,0.00062698]
[1644570401695,0.38570507,43220.0,43211.0,0.08128108]
[1644570401891,0.32306,43219.0,43217.0,0.00062701]
[1644570402088,0.32306,43219.0,43217.0,0.00032381]
[1644570402291,0.67306,43218.0,43217.0,0.00032381]
[1644570402694,0.72306,43218.0,43217.0,0.00032381]
[1644570402891,0.32306,43217.0,43211.0,0.01]
[1644570403150,0.08713635,43216.0,43211.0,0.01]
[1644570403345,0.19527349,43214.0,43211.0,0.01]
[1644570403543,0.32306,43213.0,43211.0,0.01]
[1644570403945,0.42306,43213.0,43211.0,0.01]
[1644570404545,0.71817393,43213.0,43211.0,0.01]
[1644570405147,0.42306,43213.0,43211.0,0.01]
[1644570405948,0.00023653,43215.0,43211.0,0.01]
[1644570406249,0.32306,43215.0,43211.0,0.01]
[1644570406651,0.40875691,43215.0,43211.0,0.01062532]
[1644570406891,0.32306,43215.0,43211.0,0.01062532]
[1644570407290,0.32306,43217.0,43211.0,0.01062532]
[1644570407588,0.00023653,43218.0,43211.0,0.01]
[1644570407589,0.32306,43218.0,43211.0,0.01]
[1644570407891,0.42329653,43218.0,43212.0,0.03062531]
[1644570408189,0.75240276,43218.0,43212.0,0.03062531]
[1644570408388,0.05,43215.0,43212.0,0.03062531]
[1644570408590,0.32306,43216.0,43212.0,0.03062531]
[1644570408789,0.1,43216.0,43212.0,0.03]
[1644570408988,0.32306,43215.0,43212.0,0.03]
[1644570409389,0.42306,43215.0,43212.0,0.03]
[1644570409789,0.42306,43215.0,43206.0,0.0593853]
[1644570409990,0.1,43215.0,43206.0,0.0593853]
[1644570410189,0.1,43215.0,43211.0,0.00057992]
[1644570410392,0.32306,43216.0,43211.0,0.00057992]
[1644570410644,0.32306,43217.0,43211.0,0.00057992]
[1644570410840,0.42329653,43217.0,43211.0,0.00057992]
[1644570411240,0.42329653,43217.0,43204.0,0.057883]
[1644570411440,0.0853046,43211.0,43204.0,0.057883]
[1644570411640,0.32306,43216.0,43204.0,0.057883]
[1644570411842,0.32306,43215.0,43204.0,0.057883]
[1644570412042,0.32306,43215.0,43203.0,0.0011]
[1644570412243,0.00023653,43217.0,43203.0,0.0011]
[1644570412446,0.1,43215.0,43203.0,0.0011]
[1644570412844,0.00023653,43217.0,43203.0,0.0011]
[1644570413048,0.32934276,43218.0,43203.0,0.0011]
[1644570413049,0.42934276,43218.0,43203.0,0.0011]
[1644570413243,0.00023653,43217.0,43203.0,0.0011]
[1644570413443,0.42934276,43218.0,43203.0,0.0011]
[1644570413744,0.00023653,43217.0,43203.0,0.0011]
[1644570413947,0.42934276,43218.0,43208.0,0.35682398]
[1644570413948,0.00023653,43218.0,43208.0,0.35682398]
[1644570414149,0.42069788,43220.0,43209.0,0.158435]
[1644570414150,0.00023653,43219.0,43209.0,0.158435]
[1644570414399,0.124,43230.0,43209.0,0.158435]
[1644570414400,0.19424577,43248.0,43216.0,0.05]
[1644570414600,0.19424577,43253.0,43227.0,0.2]
[1644570414796,0.7897,43259.0,43231.0,0.057834]
[1644570414797,0.00023785,43252.0,43231.0,0.057834]
[1644570415099,0.00023785,43252.0,43234.0,0.057833]
[1644570415100,0.33520452,43247.0,43234.0,0.057833]
[1644570415299,0.33520452,43247.0,43235.0,0.0427]
[1644570415497,0.00023785,43246.0,43235.0,0.0427]
[1644570415900,0.2971638,43246.0,43235.0,0.0427]
[1644570416099,0.00023785,43245.0,43235.0,0.0427]
[1644570416298,0.0863324,43237.0,43235.0,0.0427]
[1644570416499,0.70056122,43236.0,43235.0,0.0427]
[1644570416698,0.95859611,43236.0,43235.0,0.0427]
[1644570416902,0.95859611,43236.0,43219.0,0.1164]
[1644570416903,1.58165611,43236.0,43219.0,0.1164]
[1644570417100,1.25859611,43236.0,43222.0,0.0427]
[1644570417297,0.00023785,43235.0,43216.0,0.0427]
[1644570417497,0.31025111,43225.0,43216.0,0.0427]
[1644570417697,0.00023785,43228.0,43216.0,0.0427]
[1644570417898,0.32728648,43229.0,43216.0,0.23784483]
[1644570418149,0.0005088,43230.0,43216.0,0.28784483]
[1644570418346,0.00023785,43229.0,43216.0,0.0927]
[1644570418545,0.00023785,43233.0,43216.0,0.0427]
[1644570418743,0.00069794,43226.0,43221.0,0.00063234]
[1644570418944,0.35183869,43223.0,43222.0,0.0427]
[1644570419347,0.2473705,43225.0,43222.0,0.0427]
[1644570419944,0.38160622,43223.0,43222.0,0.0427]
[1644570420544,0.32683165,43223.0,43222.0,0.0427]
[1644570421144,0.32683165,43223.0,43220.0,0.00063235]
[1644570421543,0.29381013,43221.0,43220.0,0.00063235]
[1644570421745,0.32683165,43223.0,43220.0,0.00063235]
[1644570422190,0.32683165,43223.0,43215.0,0.0427]
[1644570422389,0.32683165,43223.0,43219.0,0.00063237]
[1644570422590,0.07517726,43220.0,43219.0,0.00063237]
[1644570422795,0.67185063,43220.0,43219.0,0.00063237]
[1644570423189,0.39823726,43220.0,43219.0,0.00063237]
[1644570423391,0.08663364,43213.0,43205.0,0.4955]
[1644570423891,0.3,43221.0,43205.0,0.4955]
[1644570424595,0.31458514,43222.0,43205.0,0.4955]
[1644570424790,0.31458514,43222.0,43211.0,0.00063249]
[1644570425192,0.08729225,43221.0,43211.0,0.00063249]
[1644570425643,0.08729225,43221.0,43206.0,0.52622757]
[1644570425840,0.08729225,43221.0,43214.0,0.00063245]
[1644570426840,0.08719225,43221.0,43214.0,0.00063245]
[1644570427041,0.08719225,43221.0,43215.0,0.00063242]
[1644570427442,0.3270695,43223.0,43215.0,0.00063242]
[1644570427644,0.32683165,43223.0,43215.0,0.00063242]
[1644570427841,0.00023785,43224.0,43215.0,0.00063242]
[1644570428041,0.00023785,43225.0,43215.0,0.00063242]
[1644570428241,0.00023785,43224.0,43217.0,0.0006324]
[1644570428441,0.00023785,43225.0,43217.0,0.0006324]
[1644570428641,0.0006979,43226.0,43217.0,0.0006324]
[1644570428843,0.00023785,43225.0,43217.0,0.0006324]
[1644570429040,0.0006979,43226.0,43217.0,0.0006324]
[1644570429242,0.00023785,43225.0,43214.0,0.0427]
[1644570429489,0.00069792,43226.0,43219.0,0.00063237]
[1644570429889,0.00093577,43226.0,43219.0,0.00063237]
[1644570430088,0.00069792,43226.0,43219.0,0.00063237]
[1644570430488,0.00023785,43227.0,43214.0,0.0427]
[1644570430688,0.32321834,43228.0,43220.0,0.00063235]
[1644570430689,0.00069794,43226.0,43220.0,0.00063235]
[1644570430890,0.35168487,43224.0,43220.0,0.00063235]
[1644570431689,0.35168487,43224.0,43214.0,0.0427]
[1644570431889,0.35168487,43224.0,43220.0,0.00063236]
[1644570432090,0.35192272,43224.0,43220.0,0.00063236]
[1644570432290,0.35168487,43224.0,43220.0,0.00063236]
[1644570432690,0.0739353,43221.0,43220.0,0.00063236]
[1644570432891,0.0739353,43221.0,43214.0,0.0427]
[1644570433148,0.40891059,43221.0,43220.0,0.00063236]
[1644570434145,0.73197059,43221.0,43219.0,0.009257]
[1644570434542,0.73197059,43221.0,43218.0,0.00063238]
[1644570435342,0.73197059,43221.0,43205.0,0.0427]
[1644570435544,0.40891059,43221.0,43217.0,0.0006324]
[1644570435743,0.33497529,43221.0,43217.0,0.0006324]
[1644570436543,0.33497529,43221.0,43212.0,0.0427]
[1644570436750,0.08386569,43220.0,43212.0,0.0427]
[1644570436990,0.33497529,43221.0,43212.0,0.0427]
[1644570437591,0.33489529,43221.0,43212.0,0.0427]
[1644570437991,0.33489529,43221.0,43214.0,0.0006322]
[1644570437992,0.08564798,43218.0,43214.0,0.0006322]
[1644570438191,0.33489529,43221.0,43214.0,0.0006322]
[1644570438991,0.33489529,43221.0,43208.0,0.057874]
[1644570439194,0.33489529,43221.0,43215.0,0.00063219]
[1644570439992,0.03444297,43224.0,43215.0,0.00063219]
[1644570440193,0.03444297,43224.0,43212.0,0.31706234]
[1644570440651,0.27870857,43219.0,43212.0,0.31706234]
[1644570441040,0.29790888,43225.0,43213.0,0.0427]
[1644570442047,0.27202519,43221.0,43213.0,0.0427]
[1644570442745,0.27202519,43221.0,43215.0,0.00063172]
[1644570442946,0.27202519,43221.0,43216.0,0.0427]
[1644570443945,0.27202519,43221.0,43216.0,0.04333012]
[1644570444989,0.27202519,43221.0,43216.0,0.0427]
[1644570445188,0.27202519,43221.0,43216.0,0.04333012]
[1644570445988,0.27202519,43221.0,43216.0,0.00063012]
[1644570446188,0.27202519,43221.0,43211.0,0.107872]
[1644570446388,0.27202519,43221.0,43216.0,0.00063012]
[1644570446990,0.36091498,43218.0,43216.0,0.00063012]
[1644570447389,0.27202519,43221.0,43211.0,0.107872]
[1644570447590,0.27202519,43221.0,43215.0,0.00063172]
[1644570448557,0.27202519,43221.0,43205.0,0.3]
[1644570448558,0.24340181,43216.0,43205.0,0.3]
[1644570448757,0.24340181,43216.0,43203.0,0.0011]
[1644570448955,0.24340181,43216.0,43203.0,0.5011]
[1644570449154,0.29099565,43214.0,43203.0,0.5011]
[1644570449354,0.29099565,43214.0,43206.0,0.0694385]
[1644570449552,0.29099565,43214.0,43203.0,0.510358]
[1644570449960,0.29099565,43214.0,43203.0,0.5011]
[1644570450253,0.24340181,43216.0,43203.0,0.1011]
[1644570450456,0.3955,43226.0,43204.0,0.0427]
[1644570450457,0.4827,43225.0,43204.0,0.0427]
[1644570450656,0.1162,43225.0,43210.0,0.05]
[1644570450856,0.80139753,43232.0,43214.0,0.05]
[1644570450857,0.00023785,43229.0,43214.0,0.05]
[1644570451059,0.37766889,43229.0,43215.0,0.0427]
[1644570451255,0.25707583,43225.0,43215.0,0.0427]
[1644570451455,0.25707583,43225.0,43220.0,0.06793714]
[1644570451654,0.25707583,43225.0,43221.0,0.0427]
[1644570452291,0.25707583,43225.0,43221.0,0.04332956]
[1644570452489,0.29319546,43222.0,43221.0,0.04332956]
[1644570453291,0.35752713,43222.0,43221.0,0.0427]
[1644570453594,0.35752713,43222.0,43209.0,0.07014001]
[1644570453595,0.73058713,43222.0,43219.0,0.00988658]
[1644570453790,0.32306,43221.0,43219.0,0.00988658]
[1644570453991,0.430948,43221.0,43219.0,0.00062958]
[1644570454193,0.32306,43220.0,43219.0,0.00062958]
[1644570454393,0.72516993,43220.0,43219.0,0.00062958]
[1644570454593,0.72516993,43220.0,43203.0,0.19830006]
[1644570454594,0.05788849,43217.0,43204.0,0.3]
[1644570454795,0.05788849,43217.0,43203.0,0.0011]
[1644570455645,0.39422793,43220.0,43203.0,0.0011]
[1644570455646,0.32103751,43210.0,43203.0,0.0011]
[1644570456042,0.32103751,43210.0,43208.0,0.00062975]
[1644570457043,0.32103751,43210.0,43203.0,0.0011]
[1644570457044,0.05789201,43209.0,43203.0,0.0011]
[1644570457244,0.05789201,43209.0,43207.0,0.00062977]
[1644570457450,0.28258288,43208.0,43207.0,0.00062977]
[1644570457846,0.69947288,43208.0,43207.0,0.00062977]
[1644570458249,0.69947288,43208.0,43203.0,0.01036]
[1644570458250,0.05790735,43207.0,43203.0,0.01036]
[1644570458446,0.32306,43205.0,43203.0,0.01036]
[1644570458846,0.66892856,43205.0,43203.0,0.01036]
[1644570459247,0.78474433,43205.0,43203.0,0.01036]
[1644570461598,0.28962742,43204.0,43203.0,0.01036]
[1644570463345,0.53887577,43205.0,43203.0,0.01029112]
[1644570463346,0.32306,43205.0,43203.0,0.01029112]
[1644570463544,0.34049188,43208.0,43203.0,0.01029112]
[1644570463545,0.28258288,43208.0,43203.0,0.01029112]
[1644570463743,0.32306,43207.0,43203.0,0.01029112]
[1644570463943,0.28258288,43208.0,43203.0,0.01029112]
[1644570464343,0.32306,43207.0,43203.0,0.01091887]
[1644570464547,0.05789454,43206.0,43203.0,0.01091887]
[1644570464745,0.32306,43205.0,43203.0,0.01091887]
[1644570465543,0.32306,43205.0,43203.0,0.01029112]
[1644570467391,0.32306,43205.0,43203.0,0.00103112]
[1644570467592,0.05789454,43206.0,43203.0,0.00103112]
[1644570467793,0.32306,43205.0,43203.0,0.00103112]
[1644570469895,0.323056,43205.0,43203.0,0.00103112]
[1644570474600,0.41769524,43217.0,43203.0,0.00103112]